bitfinex/quotes_SOLUSD_20251119
["timestamp","ask_amount","ask_price","bid_price","bid_amount"]
[1763566104044,0.2,136.71,136.68,6.18450516]
[1763566104253,1.8,136.78,136.68,6.18450516]
[1763566104254,0.53170231,136.79,136.7,12.36901032]
[1763566104442,10.807334,136.8,136.71,12.28882769]
[1763566104754,1.18170231,136.79,136.71,2.5]
[1763566104953,1.18170231,136.79,136.72,6.18450516]
[1763566105269,10.137334,136.8,136.78,6.18450516]
[1763566105454,10.137334,136.8,136.76,0.65]
[1763566105751,10.137334,136.8,136.75,1.8]
[1763566105952,10.137334,136.8,136.79,6.18450516]
[1763566106318,10.137334,136.8,136.72,0.65]
[1763566106319,10.787334,136.8,136.72,0.65]
[1763566106519,6.18450516,136.77,136.62,1.99999999]
[1763566106719,6.18450516,136.77,136.72,6.18450516]
[1763566106920,6.18450516,136.78,136.72,6.18450516]
[1763566107148,6.83450516,136.78,136.72,6.18450516]
[1763566107328,0.53170231,136.79,136.7,0.65]
[1763566107329,0.53170231,136.79,136.75,6.18450516]
[1763566107545,6.18450516,136.78,136.73,6.18450516]
[1763566108049,7.36620747,136.77,136.68,0.65]
[1763566108249,6.83450516,136.76,136.71,6.18450516]
[1763566108453,6.83450516,136.79,136.74,6.18450516]
[1763566108754,7.36620747,136.79,136.74,6.18450516]
[1763566109055,10.66903631,136.8,136.75,6.18450516]
[1763566109267,10.137334,136.8,136.75,6.18450516]
[1763566109422,16.97183916,136.8,136.75,6.18450516]
[1763566110348,6.18450516,136.78,136.73,6.18450516]
[1763566110647,0.53170231,136.79,136.75,6.18450516]
[1763566111017,10.137334,136.8,136.78,6.18450516]
[1763566111451,10.137334,136.8,136.76,0.65]
[1763566111653,0.65,136.79,136.76,6.18450516]
[1763566111839,0.65,136.79,136.72,0.65]
[1763566111840,1.18170231,136.79,136.74,6.18450516]
[1763566112150,0.65,136.78,136.72,0.65]
[1763566112352,6.71620747,136.77,136.7,0.65]
[1763566112654,6.71620747,136.77,136.72,6.18450516]
[1763566112855,6.71620747,136.77,136.7,6.18450516]
[1763566112856,0.65,136.76,136.7,6.18450516]
[1763566113061,0.65,136.76,136.72,6.18450516]
[1763566113233,1.18170231,136.76,136.72,6.18450516]
[1763566113654,1.18170231,136.76,136.71,6.18450516]
[1763566113835,7.36620747,136.76,136.71,6.18450516]
[1763566114034,0.65,136.75,136.71,6.18450516]
[1763566114847,0.53170231,136.76,136.71,9.49119829]
[1763566115052,0.65,136.75,136.71,9.49119829]
[1763566115467,0.53170231,136.76,136.72,9.49119829]
[1763566115762,0.53170231,136.76,136.73,9.49119829]
[1763566115980,9.49119829,136.75,136.65,18.12096]
[1763566116129,0.65,136.76,136.6,1.99999999]
[1763566116130,10.0229006,136.74,136.69,9.49119829]
[1763566116330,0.53170231,136.74,136.69,9.49119829]
[1763566116632,0.65,136.73,136.69,9.49119829]
[1763566116838,10.6729006,136.74,136.69,10.14119829]
[1763566117046,10.6729006,136.74,136.63,9.78882769]
[1763566117047,0.53170231,136.76,136.67,0.65]
[1763566117263,9.49119829,136.73,136.68,11.29119829]
[1763566117736,10.14119829,136.73,136.68,11.29119829]
[1763566118050,10.14119829,136.73,136.68,11.94119829]
[1763566118279,9.49119829,136.69,136.61,0.65]
[1763566118437,9.49119829,136.67,136.62,1.8]
[1763566118635,9.49119829,136.66,136.61,9.49119829]
[1763566118864,9.49119829,136.66,136.61,11.29119829]
[1763566119053,10.14119829,136.66,136.61,11.29119829]
[1763566119251,9.49119829,136.63,136.58,9.49119829]
[1763566119533,0.65,136.65,136.56,9.49119829]
[1763566119534,9.49119829,136.62,136.56,9.49119829]
[1763566119954,10.14119829,136.62,136.57,1.8]
[1763566120161,9.49119829,136.61,136.55,11.94119829]
[1763566120469,10.14119829,136.62,136.55,2.45]
[1763566120638,9.49119829,136.6,136.55,9.49119829]
[1763566120837,9.49119829,136.59,136.55,1.8]
[1763566121049,9.49119829,136.6,136.55,11.29119829]
[1763566121256,9.49119829,136.59,136.55,1.8]
[1763566121451,9.49119829,136.59,136.53,9.49119829]
[1763566121643,9.49119829,136.55,136.5,0.1]
[1763566121845,9.49119829,136.54,136.5,0.1]
[1763566122256,10.14119829,136.54,136.5,0.1]
[1763566122743,0.65,136.54,136.5,0.1]
[1763566122944,10.14119829,136.54,136.5,0.1]
[1763566123148,0.65,136.56,136.5,0.1]
[1763566123355,10.14119829,136.57,136.51,9.49119829]
[1763566123545,10.14119829,136.56,136.5,9.59119829]
[1763566124070,10.14119829,136.56,136.51,9.49119829]
[1763566124659,0.65,136.56,136.51,0.12933529]
[1763566125039,0.65,136.56,136.5,0.1]
[1763566125356,10.14119829,136.56,136.51,9.49119829]
[1763566125561,9.49119829,136.55,136.5,0.1]
[1763566125739,9.49119829,136.55,136.5,9.59119829]
[1763566125946,10.14119829,136.55,136.5,9.59119829]
[1763566126248,25.44310821,136.58,136.51,10.14119829]
[1763566126447,10.14119829,136.57,136.5,0.1]
[1763566126653,10.14119829,136.57,136.51,9.49119829]
[1763566126863,10.14119829,136.57,136.52,9.49119829]
[1763566127070,19.28002598,136.62,136.5,0.1]
[1763566127071,1.18170231,136.63,136.51,9.49119829]
[1763566127271,10.0229006,136.63,136.58,9.49119829]
[1763566127437,0.65,136.62,136.58,9.49119829]
[1763566127761,9.49119829,136.61,136.55,1.8]
[1763566127974,9.49119829,136.61,136.56,9.49119829]
[1763566128150,10.14119829,136.6,136.55,9.49119829]
[1763566128336,0.65,136.6,136.53,2.45]
[1763566128542,0.53170231,136.62,136.56,9.49119829]
[1763566128543,10.6729006,136.62,136.56,9.49119829]
[1763566128842,0.65,136.64,136.59,9.49119829]
[1763566129176,1.18170231,136.64,136.6,9.49119829]
[1763566129340,9.78882769,136.69,136.57,0.65]
[1763566129341,10.6729006,136.68,136.62,9.49119829]
[1763566129542,9.49119829,136.67,136.59,1.8]
[1763566129747,10.0229006,136.66,136.61,9.49119829]
[1763566130139,9.49119829,136.64,136.56,0.67]
[1763566130337,0.53170231,136.63,136.59,9.49119829]
[1763566130538,10.6829006,136.63,136.58,9.49119829]
[1763566133758,1.19170231,136.69,136.65,9.49119829]
[1763566134445,10.15119829,136.68,136.63,9.49119829]
[1763566134661,0.53170231,136.67,136.63,9.49119829]
[1763566134860,1.19170231,136.67,136.6,0.67]
[1763566135180,10.6829006,136.67,136.62,9.49119829]
[1763566135669,0.66,136.66,136.62,9.49119829]
[1763566136538,0.66,136.66,136.63,9.49119829]
[1763566136741,0.66,136.66,136.62,9.49119829]
[1763566137470,0.53170231,136.65,136.61,9.49119829]
[1763566137670,19.92096,136.69,136.63,9.49119829]
[1763566137671,10.6829006,136.68,136.63,9.49119829]
[1763566138049,10.15119829,136.67,136.62,9.49119829]
[1763566138366,0.53170231,136.66,136.62,9.49119829]
[1763566138567,1.19170231,136.66,136.62,9.49119829]
[1763566138767,10.6829006,136.68,136.63,9.49119829]
[1763566139067,1.19170231,136.68,136.64,9.49119829]
[1763566139262,0.66,136.67,136.6,0.67]
[1763566139465,0.53170231,136.66,136.62,9.49119829]
[1763566139768,1.19170231,136.66,136.62,9.49119829]
[1763566139962,1.19170231,136.68,136.64,9.49119829]
[1763566140154,0.53170231,136.68,136.65,9.49119829]
[1763566140351,7.31475385,136.71,136.63,1.8]
[1763566140550,0.53170231,136.69,136.65,9.49119829]
[1763566140769,9.49119829,136.67,136.59,0.67]
[1763566141067,0.53170231,136.66,136.62,9.49119829]
[1763566141370,9.49119829,136.65,136.58,1.8]
[1763566141586,9.49119829,136.65,136.53,9.78882769]
[1763566141587,9.49119829,136.59,136.54,1.8]
[1763566141747,9.49119829,136.59,136.54,11.29119829]
[1763566142075,9.49119829,136.61,136.54,2.47]
[1763566142251,0.66,136.59,136.56,9.49119829]
[1763566142643,0.53170231,136.64,136.58,9.49119829]
[1763566142842,0.53170231,136.64,136.52,18.12096]
[1763566142843,0.53170231,136.67,136.63,9.49119829]
[1763566143272,1.19170231,136.67,136.63,9.49119829]
[1763566143655,0.53170231,136.67,136.63,9.49119829]
[1763566143857,0.53170231,136.67,136.6,0.67]
[1763566143858,1.19170231,136.7,136.66,9.49119829]
[1763566144072,1.19170231,136.7,136.64,2.47]
[1763566144292,0.66,136.74,136.66,18.12096]
[1763566144584,9.49119829,136.73,136.68,9.49119829]
[1763566144742,9.49119829,136.73,136.65,2.47]
[1763566144743,9.49119829,136.71,136.66,9.49119829]
[1763566144947,0.53170231,136.7,136.66,9.49119829]
[1763566145145,1.19170231,136.7,136.67,9.49119829]
[1763566145353,0.66,136.7,136.65,1.8]
[1763566145575,0.66,136.69,136.66,9.49119829]
[1763566146278,0.53170231,136.71,136.66,9.49119829]
[1763566146479,1.19170231,136.73,136.69,9.49119829]
[1763566146662,0.66,136.73,136.67,0.67]
[1763566146867,0.66,136.73,136.7,9.49119829]
[1763566147086,0.66,136.73,136.69,9.49119829]
[1763566147392,0.53170231,136.74,136.72,9.49119829]
[1763566147555,0.2,136.77,136.73,11.29119829]
[1763566147758,0.2,136.77,136.76,9.49119829]
[1763566148083,0.2,136.77,136.73,0.67]
[1763566148258,0.66,136.76,136.69,0.67]
[1763566148462,0.66,136.76,136.71,9.49119829]
[1763566148463,10.6829006,136.76,136.71,9.49119829]
[1763566148881,0.66,136.75,136.71,9.49119829]
[1763566149083,0.66,136.75,136.7,1.8]
[1763566149287,0.53170231,136.76,136.71,2.47]
[1763566149489,0.2,136.77,136.74,9.49119829]
[1763566149671,0.2,136.77,136.75,9.49119829]
[1763566149988,0.2,136.77,136.74,9.49119829]
[1763566150568,0.2,136.77,136.75,9.49119829]
[1763566150776,0.2,136.77,136.76,9.49119829]
[1763566151274,0.2,136.77,136.74,18.79096]
[1763566151585,0.2,136.77,136.76,9.49119829]
[1763566151977,0.2,136.77,136.76,10.16119829]
[1763566152889,0.2,136.77,136.75,1.8]
[1763566153095,0.2,136.77,136.75,11.29119829]
[1763566153687,0.2,136.77,136.75,9.49119829]
[1763566154208,0.2,136.77,136.76,9.49119829]
[1763566154607,0.2,136.77,136.74,1.8]
[1763566154909,0.2,136.77,136.75,9.49119829]
[1763566155418,0.2,136.77,136.75,0.67]
[1763566155589,0.2,136.77,136.76,10.16119829]
[1763566155777,0.2,136.77,136.72,0.67]
[1763566156293,0.2,136.77,136.75,9.49119829]
[1763566156499,0.2,136.77,136.76,9.49119829]
[1763566156696,0.2,136.77,136.75,9.49119829]
[1763566157012,0.2,136.77,136.76,11.29119829]
[1763566157389,0.2,136.77,136.76,11.96119829]
[1763566157909,0.2,136.77,136.73,18.79096]
[1763566158103,0.2,136.77,136.76,9.49119829]
[1763566160091,0.2,136.77,136.74,0.67]
[1763566160292,0.2,136.77,136.75,11.29119829]
[1763566160698,0.2,136.77,136.75,9.49119829]
[1763566161182,0.2,136.77,136.76,10.17119829]
[1763566161582,10.137334,136.8,136.77,9.78882769]
[1763566161799,10.137334,136.8,136.79,9.49119829]
[1763566162313,10.137334,136.8,136.79,11.97119829]
[1763566162695,10.137334,136.8,136.79,30.09215829]
[1763566163216,10.137334,136.8,136.79,28.29215829]
[1763566163505,10.137334,136.8,136.79,30.09215829]
[1763566164085,10.137334,136.8,136.79,9.49119829]
[1763566164295,10.137334,136.8,136.79,11.29119829]
[1763566164916,10.137334,136.8,136.79,1.8]
[1763566165114,10.137334,136.8,136.79,11.29119829]
[1763566165408,10.797334,136.8,136.79,1.8]
[1763566165605,10.137334,136.8,136.79,11.29119829]
[1763566165985,10.137334,136.8,136.79,9.49119829]
[1763566166187,10.137334,136.8,136.79,11.29119829]
[1763566168911,10.137334,136.8,136.79,1.8]
[1763566169095,10.137334,136.8,136.79,11.29119829]
[1763566170334,10.137334,136.8,136.79,1.8]
[1763566170497,10.137334,136.8,136.79,11.29119829]
[1763566170907,10.797334,136.8,136.79,11.29119829]
[1763566171090,10.797334,136.8,136.78,1.8]
[1763566171697,10.797334,136.8,136.78,11.29119829]
[1763566172395,10.797334,136.8,136.78,1.8]
[1763566172595,10.137334,136.8,136.79,9.49119829]
[1763566172994,10.137334,136.8,136.78,1.8]
[1763566173200,10.137334,136.8,136.79,9.49119829]
[1763566174228,10.137334,136.8,136.79,10.16119829]
[1763566174898,10.137334,136.8,136.79,9.49119829]
[1763566175103,10.137334,136.8,136.79,11.29119829]
[1763566175406,10.137334,136.8,136.79,9.49119829]
[1763566175598,10.137334,136.8,136.79,1.8]
[1763566175799,10.137334,136.8,136.79,11.29119829]
[1763566176809,10.137334,136.8,136.79,7.98598233]
[1763566177221,10.137334,136.8,136.79,1.8]
[1763566177403,10.137334,136.8,136.79,7.98598233]
[1763566178847,10.137334,136.8,136.79,8.65598233]
[1763566179408,10.137334,136.8,136.79,2.47]
[1763566179620,10.137334,136.8,136.79,1.8]
[1763566179819,10.137334,136.8,136.79,7.98598233]
[1763566180335,10.797334,136.8,136.73,0.67]
[1763566180503,10.137334,136.8,136.79,6.18598233]
[1763566180706,10.137334,136.8,136.78,1.8]
[1763566180923,10.137334,136.8,136.78,6.18598233]
[1763566181118,10.797334,136.8,136.79,1.8]
[1763566181518,10.137334,136.8,136.79,7.98598233]
[1763566181714,10.797334,136.8,136.79,1.8]
[1763566182224,10.137334,136.8,136.79,7.98598233]
[1763566184718,10.137334,136.8,136.79,1.8]
[1763566184914,10.137334,136.8,136.79,7.98598233]
[1763566185115,10.797334,136.8,136.72,10.45882769]
[1763566185435,0.66,136.79,136.75,6.18598233]
[1763566185635,10.137334,136.8,136.78,6.18598233]
[1763566185933,10.137334,136.8,136.79,7.98598233]
[1763566186642,68.67515964,136.8,136.66,0.67]
[1763566186840,6.18598233,136.73,136.68,6.18598233]
[1763566187045,0.66,136.72,136.67,1.8]
[1763566187225,0.66,136.72,136.68,6.18598233]
[1763566187743,0.66,136.72,136.69,6.18598233]
[1763566187947,0.66,136.72,136.67,1.8]
[1763566188351,0.66,136.72,136.69,6.18598233]
[1763566189414,0.66,136.72,136.68,6.18598233]
[1763566189843,9.77429019,136.72,136.64,6.18598233]
[1763566190035,6.18598233,136.69,136.64,7.98598233]
[1763566190426,6.18598233,136.69,136.63,1.9]
[1763566190427,6.84598233,136.68,136.63,1.9]
[1763566190636,6.84598233,136.68,136.63,8.08598233]
[1763566190846,0.66,136.67,136.63,8.08598233]
[1763566191838,0.66,136.67,136.64,6.18598233]
[1763566192032,1.99999999,136.75,136.66,6.18598233]
[1763566192033,0.66,136.71,136.66,6.18598233]
[1763566192236,0.66,136.71,136.68,6.18598233]
[1763566194833,0.66,136.71,136.67,1.8]
[1763566195029,0.66,136.71,136.67,6.18598233]
[1763566195651,0.66,136.71,136.66,1.8]
[1763566195837,0.66,136.71,136.68,6.18598233]
[1763566196143,0.66,136.71,136.66,7.98598233]
[1763566196349,0.66,136.71,136.67,6.18598233]
[1763566196921,6.18598233,136.7,136.65,6.18598233]
[1763566197118,6.18598233,136.7,136.65,7.98598233]
[1763566197324,0.66,136.69,136.65,7.98598233]
[1763566197749,0.66,136.69,136.63,0.1]
[1763566197750,6.84598233,136.69,136.63,0.1]
[1763566197932,6.18598233,136.68,136.63,6.28598233]
[1763566198130,6.84598233,136.68,136.63,6.28598233]
[1763566198357,0.66,136.67,136.63,6.28598233]
[1763566199844,0.66,136.67,136.64,6.18598233]
[1763566200048,0.66,136.67,136.63,0.1]
[1763566200248,0.53170231,136.69,136.63,0.81]
[1763566200527,0.66,136.68,136.64,11.58882769]
[1763566200735,0.66,136.68,136.64,1.8]
[1763566200923,0.66,136.71,136.65,0.71]
[1763566201135,6.18598233,136.71,136.64,2.51]
[1763566201332,0.66,136.74,136.65,0.71]
[1763566201549,0.53170231,136.73,136.65,0.71]
[1763566201848,0.53170231,136.73,136.67,6.18598233]
[1763566201849,6.18598233,136.72,136.67,6.18598233]
[1763566202031,6.18598233,136.72,136.66,6.18598233]
[1763566202032,6.71768464,136.71,136.66,6.18598233]
[1763566202242,1.19170231,136.71,136.64,1.8]
[1763566202426,0.66,136.7,136.65,6.18598233]
[1763566202622,1.19170231,136.73,136.69,6.18598233]
[1763566202947,0.53170231,136.72,136.64,0.71]
[1763566203131,1.19170231,136.72,136.68,6.18598233]
[1763566203333,1.19170231,136.72,136.64,1.8]
[1763566203334,6.18598233,136.7,136.64,1.8]
[1763566203534,0.53170231,136.69,136.63,0.1]
[1763566203737,6.18598233,136.64,136.63,0.1]
[1763566204157,0.66,136.64,136.63,0.1]
[1763566204330,1.19170231,136.69,136.63,6.28598233]
[1763566204530,1.19170231,136.71,136.66,6.18598233]
[1763566204842,8.50697418,136.71,136.63,0.1]
[1763566205158,6.84598233,136.7,136.64,6.18598233]
[1763566205457,6.71768464,136.69,136.64,6.18598233]
[1763566205647,1.19170231,136.69,136.64,6.18598233]
[1763566205826,0.66,136.71,136.67,6.18598233]
[1763566206034,0.66,136.7,136.67,6.18598233]
[1763566206337,14.69091624,136.74,136.69,6.18598233]
[1763566206541,6.18598233,136.72,136.67,6.18598233]
[1763566206763,0.53170231,136.71,136.66,7.98598233]
[1763566206962,1.19170231,136.73,136.68,6.18598233]
[1763566207142,7.37768464,136.73,136.68,6.18598233]
[1763566207333,0.66,136.72,136.66,1.8]
[1763566207657,0.53170231,136.71,136.67,7.98598233]
[1763566207887,1.19170231,136.71,136.66,6.18598233]
[1763566208031,6.84598233,136.7,136.63,0.1]
[1763566208235,6.18598233,136.67,136.63,0.1]
[1763566208441,6.18598233,136.68,136.63,0.1]
[1763566208632,0.53170231,136.67,136.63,0.1]
[1763566208835,6.71768464,136.69,136.63,6.28598233]
[1763566209048,0.66,136.68,136.64,6.18598233]
[1763566210375,14.0335878,136.69,136.64,6.18598233]
[1763566210539,0.66,136.68,136.64,6.18598233]
[1763566210949,1.19170231,136.68,136.64,6.18598233]
[1763566211354,6.84598233,136.67,136.63,0.1]
[1763566211754,0.66,136.66,136.63,0.1]
[1763566211951,6.84598233,136.66,136.63,0.1]
[1763566212148,0.66,136.66,136.63,0.1]
[1763566212741,1.19170231,136.66,136.63,0.1]
[1763566212938,8.50919757,136.66,136.63,0.1]
[1763566213138,0.66,136.65,136.63,0.1]
[1763566213368,6.18598233,136.64,136.63,0.1]
[1763566213745,6.84598233,136.64,136.63,0.1]
[1763566214767,0.53170231,136.67,136.63,0.1]
[1763566214979,1.19170231,136.66,136.63,0.1]
[1763566215545,0.66,136.66,136.63,6.28598233]
[1763566215865,0.66,136.66,136.63,0.1]
[1763566216069,0.53170231,136.67,136.63,6.28598233]
[1763566216260,0.66,136.67,136.63,6.28598233]
[1763566216445,6.84598233,136.67,136.63,0.1]
[1763566216648,1.19170231,136.66,136.63,0.1]
[1763566216851,0.53170231,136.68,136.64,6.18598233]
[1763566217056,1.19170231,136.68,136.63,6.28598233]
[1763566217570,1.19170231,136.7,136.65,6.18598233]
[1763566217759,14.69309897,136.7,136.65,6.18598233]
[1763566217958,0.66,136.69,136.65,6.18598233]
[1763566218145,0.53170231,136.7,136.66,6.18598233]
[1763566218344,1.19170231,136.7,136.66,6.18598233]
[1763566218673,0.53170231,136.72,136.69,6.18598233]
[1763566218845,9.78882769,136.79,136.67,0.71]
[1763566219043,8.5022187,136.79,136.74,6.18598233]
[1763566219267,8.5022187,136.79,136.7,1.8]
[1763566219268,6.84598233,136.78,136.7,1.8]
[1763566219470,6.71768464,136.77,136.72,6.18598233]
[1763566219785,6.18598233,136.76,136.7,7.98598233]
[1763566220083,6.18598233,136.74,136.69,6.18598233]
[1763566220254,0.53170231,136.73,136.69,7.98598233]
[1763566220451,6.71768464,136.73,136.64,0.66]
[1763566220753,6.84598233,136.72,136.66,6.18598233]
[1763566220952,13.50127128,136.7,136.65,6.18598233]
[1763566221151,0.53170231,136.69,136.65,6.18598233]
[1763566221363,1.19170231,136.69,136.66,6.18598233]
[1763566221874,1.19170231,136.69,136.65,6.18598233]
[1763566222467,0.53170231,136.7,136.66,6.18598233]
[1763566222650,7.31495514,136.71,136.66,6.18598233]
[1763566222968,7.9856085,136.7,136.66,6.18598233]
[1763566223374,6.71768464,136.71,136.66,6.18598233]
[1763566223573,1.20170231,136.71,136.67,6.18598233]
[1763566223876,19.92096,136.75,136.69,6.18598233]
[1763566223877,8.51522369,136.74,136.69,6.18598233]
[1763566224073,1.20170231,136.74,136.7,6.18598233]
[1763566224277,13.49816082,136.76,136.72,6.18598233]
[1763566224278,0.53170231,136.76,136.72,6.18598233]
[1763566224479,0.67,136.75,136.65,10.52062425]
[1763566224679,6.18598233,136.68,136.63,0.1]
[1763566224890,6.18598233,136.66,136.63,0.1]
[1763566225053,13.50394793,136.65,136.63,0.1]
[1763566225387,7.3179656,136.65,136.63,0.1]
[1763566225560,6.85598233,136.64,136.63,0.1]
[1763566226361,6.85598233,136.64,136.56,6.18598233]
[1763566226558,6.18598233,136.61,136.56,6.18598233]
[1763566226768,6.18598233,136.61,136.54,0.66]
[1763566226978,6.18598233,136.59,136.51,0.66]
[1763566227254,6.18598233,136.59,136.5,0.1]
[1763566227255,13.50718527,136.59,136.53,0.66]
[1763566227481,14.17718527,136.59,136.53,6.84598233]
[1763566227777,0.67,136.59,136.54,6.18598233]
[1763566228096,6.85598233,136.59,136.54,6.18598233]
[1763566228383,6.85598233,136.58,136.53,6.18598233]
[1763566228558,6.18598233,136.57,136.55,0.1]
[1763566228871,6.85598233,136.56,136.5,0.1]
[1763566229075,0.67,136.56,136.5,0.1]
[1763566229279,1.8,136.59,136.5,0.1]
[1763566229280,6.85598233,136.55,136.5,0.1]
[1763566229481,6.18598233,136.53,136.5,0.1]
[1763566229858,0.67,136.52,136.5,0.1]
[1763566230194,0.67,136.54,136.5,0.1]
[1763566230358,6.85598233,136.57,136.51,6.18598233]
[1763566230556,6.18598233,136.55,136.5,6.28598233]
[1763566230771,0.67,136.56,136.5,0.1]
[1763566230973,6.18598233,136.54,136.5,0.1]
[1763566231168,0.67,136.58,136.52,6.18598233]
[1763566231366,0.67,136.58,136.5,1.9]
[1763566231574,6.18598233,136.55,136.5,0.1]
[1763566231879,6.18598233,136.51,136.5,0.1]
[1763566232077,6.18598233,136.52,136.5,0.1]
[1763566232258,6.18598233,136.51,136.5,0.1]
[1763566232456,6.18598233,136.51,136.49,0.1]
[1763566232685,1.8,136.53,136.49,0.1]
[1763566232686,6.85598233,136.5,136.49,0.1]
[1763566233001,14.18198965,136.5,136.49,0.1]
[1763566234260,0.67,136.49,136.43,0.1]
[1763566234484,6.18598233,136.44,136.43,0.1]
[1763566234789,6.18598233,136.45,136.43,0.1]
[1763566235093,13.51487025,136.45,136.43,0.1]
[1763566235263,0.67,136.44,136.43,0.1]
[1763566235459,6.85598233,136.44,136.43,0.1]
[1763566236662,24.97694233,136.44,136.43,0.1]
[1763566236898,28.33223751,136.44,136.43,0.1]
[1763566237065,0.67,136.44,136.43,0.1]
[1763566237379,10.21127751,136.44,136.43,0.1]
[1763566237578,28.33223751,136.44,136.43,0.1]
[1763566237759,30.13223751,136.44,136.43,0.1]
[1763566237962,20.59096,136.44,136.43,0.1]
[1763566238181,30.13223751,136.44,136.43,0.1]
[1763566238387,39.9210652,136.44,136.43,0.1]
[1763566238586,18.12096,136.41,136.29,1.93593088]
[1763566238790,18.12096,136.37,136.29,1.93593088]
[1763566239090,18.12096,136.34,136.29,1.93593088]
[1763566239291,19.92096,136.34,136.29,1.93593088]
[1763566239484,1.8,136.34,136.29,1.93593088]
[1763566239671,0.67,136.33,136.29,1.93593088]
[1763566239885,10.21127751,136.33,136.29,1.93593088]
[1763566240191,18.12096,136.36,136.3,10.20127751]
[1763566240361,11.58882769,136.38,136.3,0.66]
[1763566240563,18.79096,136.38,136.3,0.66]
[1763566240874,18.79096,136.37,136.29,1.93593088]
[1763566241179,9.78882769,136.42,136.29,1.93593088]
[1763566241180,1.8,136.38,136.3,0.66]
[1763566241382,0.67,136.41,136.36,9.54127751]
[1763566241686,9.54127751,136.39,136.34,10.20127751]
[1763566241891,0.53170231,136.43,136.34,10.20127751]
[1763566241892,0.53170231,136.43,136.37,9.54127751]
[1763566242082,1.20170231,136.45,136.4,9.54127751]
[1763566242282,9.54127751,136.44,136.33,9.78882769]
[1763566242490,0.53170231,136.43,136.36,9.54127751]
[1763566242678,0.53170231,136.43,136.33,0.66]
[1763566242679,0.53170231,136.44,136.4,9.54127751]
[1763566242872,0.67,136.43,136.35,9.54127751]
[1763566243093,7.86220827,136.42,136.34,0.66]
[1763566243291,0.53170231,136.42,136.37,9.54127751]
[1763566243591,10.21127751,136.45,136.39,9.54127751]
[1763566243798,10.07297982,136.44,136.38,9.54127751]
[1763566244005,10.07297982,136.44,136.39,9.54127751]
[1763566244173,0.53170231,136.44,136.4,9.54127751]
[1763566244374,1.20170231,136.44,136.39,10.20127751]
[1763566244597,0.53170231,136.44,136.4,9.54127751]
[1763566244977,1.20170231,136.44,136.39,9.54127751]
[1763566245284,10.74297982,136.44,136.39,10.20127751]
[1763566245492,0.53170231,136.44,136.4,10.20127751]
[1763566245692,9.54127751,136.42,136.34,0.66]
[1763566246000,27.66223751,136.4,136.3,9.54127751]
[1763566246174,9.54127751,136.35,136.3,0.66]
[1763566246373,1.20170231,136.39,136.32,9.54127751]
[1763566246595,9.54127751,136.38,136.33,9.54127751]
[1763566246787,9.54127751,136.38,136.29,1.93593088]
[1763566246982,16.87376193,136.38,136.33,9.54127751]
[1763566247187,7.86348593,136.4,136.34,10.20127751]
[1763566247497,9.54127751,136.38,136.33,9.54127751]
[1763566247696,0.53170231,136.37,136.33,9.54127751]
[1763566247991,0.53170231,136.37,136.3,2.46]
[1763566247992,0.53170231,136.41,136.36,9.54127751]
[1763566248169,7.32986774,136.43,136.39,9.54127751]
[1763566248373,9.54127751,136.41,136.33,0.66]
[1763566248572,0.53170231,136.42,136.39,9.54127751]
[1763566248785,0.53170231,136.46,136.41,9.54127751]
[1763566248974,18.07117606,136.46,136.4,9.54127751]
[1763566249180,18.07117606,136.46,136.41,9.54127751]
[1763566249583,0.67,136.45,136.38,0.66]
[1763566249908,9.54127751,136.39,136.29,1.93593088]
[1763566250107,9.54127751,136.3,136.29,1.93593088]
[1763566250277,1.8,136.34,136.29,1.93593088]
[1763566250677,0.66,136.35,136.3,0.71]
[1763566250890,10.07297982,136.36,136.31,9.54127751]
[1763566251077,7.33460466,136.34,136.3,9.54127751]
[1763566251271,0.53170231,136.36,136.32,9.54127751]
[1763566251498,0.53170231,136.37,136.32,9.54127751]
[1763566251800,0.53170231,136.37,136.29,1.93593088]
[1763566251801,10.07297982,136.4,136.35,9.54127751]
[1763566251993,9.54127751,136.39,136.34,9.54127751]